bitfinex-derivatives/quotes_ETHF0:USTF0_20220108
["timestamp","ask_amount","ask_price","bid_price","bid_amount"]
[1641648797759,2.00479,3195.6,3195.5,1.32375848]
[1641648798557,2.00479,3195.6,3195.5,1.82298934]
[1641648798759,2.269578,3195.6,3195.5,1.82298934]
[1641648799658,4.274368,3195.6,3195.5,1.82298934]
[1641648799858,4.274368,3195.6,3195.5,0.49923086]
[1641648800057,2.14429122,3195.6,3195.5,0.49923086]
[1641648803360,3.64421381,3195.6,3195.5,0.49923086]
[1641648805063,3.64421381,3195.6,3195.4,0.031]
[1641648806565,2.14429122,3195.6,3195.4,0.031]
[1641648808265,1.49992259,3195.5,3195.4,0.031]
[1641648808865,3.70906258,3195.6,3195.4,0.031]
[1641648810066,3.56956136,3195.6,3195.4,0.031]
[1641648810469,2.00479,3196.0,3195.5,1.5]
[1641648810669,2.00479,3196.0,3195.6,0.342998]
[1641648810869,1.0535763,3196.5,3195.9,1.5]
[1641648811167,26.63941703,3197.2,3195.5,0.7522]
[1641648811168,1.0535763,3196.7,3196.0,0.342988]
[1641648811368,1.0535763,3196.7,3196.0,1.5]
[1641648811567,1.0535763,3196.7,3196.1,0.0782]
[1641648811767,1.0535763,3196.7,3196.2,0.264788]
[1641648811969,1.0535763,3196.7,3196.2,1.020688]
[1641648812770,0.640787,3196.7,3196.2,1.020688]
[1641648813968,2.00479,3197.1,3196.2,1.020688]
[1641648814169,2.00479,3197.1,3196.3,0.87271796]
[1641648814570,2.00479,3197.1,3196.4,0.264788]
[1641648815973,0.640787,3197.0,3196.4,0.264788]
[1641648817378,0.780288,3197.0,3196.4,0.264788]
[1641648820882,0.139501,3197.0,3196.4,0.264788]
[1641648822085,2.00479,3197.1,3196.4,0.264788]
[1641648822285,2.00479,3197.1,3196.5,0.0782]
[1641648822484,2.00479,3197.1,3196.6,0.264788]
[1641648823187,2.144291,3197.1,3196.6,0.264788]
[1641648823588,0.640787,3197.0,3196.6,0.264788]
[1641648824788,2.144291,3197.1,3196.6,0.264788]
[1641648825790,2.785078,3197.1,3196.6,0.264788]
[1641648827791,2.785078,3197.1,3196.4,0.87271796]
[1641648828593,2.785078,3197.1,3196.5,0.79451796]
[1641648829796,2.785078,3197.1,3196.6,0.79451796]
[1641648830296,2.144291,3197.1,3196.6,0.79451796]
[1641648830698,2.00479,3197.1,3196.6,0.79451796]
[1641648830897,2.144291,3197.1,3196.6,0.264788]
[1641648831098,2.785078,3197.1,3196.6,0.342988]
[1641648832101,2.785078,3197.1,3196.6,1.13750596]
[1641648832299,2.785078,3197.1,3196.6,1.05930596]
[1641648835201,2.785078,3197.1,3196.6,0.79451796]
[1641648835400,3.449978,3197.1,3196.6,0.79451796]
[1641648835901,3.449978,3197.1,3196.5,0.79451796]
[1641648837104,3.449978,3197.1,3196.4,0.79451796]
[1641648838303,3.449978,3197.1,3196.5,0.79451796]
[1641648838503,2.785078,3197.1,3196.5,0.79451796]
[1641648840107,1.56416437,3196.8,3196.5,0.79451796]
[1641648840306,3.06430963,3196.6,3196.0,1.32375848]
[1641648840506,1.49992259,3196.3,3196.0,1.32375848]
[1641648840705,1.56438704,3196.6,3196.0,1.32375848]
[1641648840706,3.06430963,3196.6,3196.0,1.32375848]
[1641648840903,0.139501,3196.2,3196.0,1.32375848]
[1641648841103,0.640787,3196.5,3196.0,1.32375848]
[1641648841305,1.56419128,3196.8,3195.8,2.00479]
[1641648841505,1.0535763,3196.9,3195.8,2.00479]
[1641648841904,2.55349889,3196.9,3195.8,2.00479]
[1641648842104,2.00479,3196.4,3195.8,2.00479]
[1641648842306,2.00479,3196.4,3195.9,0.264788]
[1641648844103,2.645577,3196.4,3195.9,0.264788]
[1641648844705,2.785078,3196.4,3195.9,0.264788]
[1641648846412,2.785078,3196.4,3195.8,2.00479]
[1641648846708,1.49992259,3196.3,3195.6,1.32375848]
[1641648847007,0.139501,3196.2,3195.6,1.32375848]
[1641648847208,1.56452655,3196.1,3195.6,1.32375848]
[1641648847407,0.139501,3196.0,3195.6,1.32375848]
[1641648847811,0.139501,3196.0,3195.4,0.031]
[1641648848207,2.00479,3195.6,3195.4,0.031]
[1641648850413,2.00479,3195.6,3195.5,0.264788]
[1641648850610,2.00479,3195.6,3195.5,0.343008]
[1641648853312,9e-05,3195.6,3195.5,0.343008]
[1641648855114,2.00479,3196.4,3195.5,0.343008]
[1641648856114,2.00479,3196.4,3195.6,2.00479]
[1641648856315,0.780288,3196.3,3195.6,2.00479]
[1641648857017,0.780288,3196.3,3195.7,0.264788]
[1641648858118,0.780288,3196.3,3195.6,2.00479]
[1641648859419,0.780288,3196.3,3195.7,0.264788]
[1641648861722,0.780288,3196.3,3195.7,1.06053857]
[1641648862824,0.780288,3196.3,3195.8,0.79575057]
[1641648863124,0.780288,3196.3,3195.8,1.29498863]
[1641648863923,0.780288,3196.3,3195.8,0.79575057]
[1641648864125,0.780288,3196.3,3195.7,1.06053857]
[1641648864324,1.369888,3196.3,3195.7,1.06053857]
[1641648865024,1.369888,3196.3,3195.7,0.264788]
[1641648866127,1.369888,3196.3,3195.6,2.80054057]
[1641648866929,1.49992259,3196.0,3195.6,2.80054057]
[1641648867128,1.369888,3196.3,3195.6,2.80054057]
[1641648867129,0.139501,3195.9,3195.6,0.79575057]
[1641648867332,0.139501,3195.9,3195.5,0.79575057]
[1641648868332,2.144291,3195.9,3195.5,0.79575057]
[1641648868731,2.144291,3195.9,3195.4,0.031]
[1641648868934,2.144291,3195.9,3195.5,0.264788]
[1641648870435,2.144291,3195.9,3195.4,0.82675057]
[1641648870635,3.029391,3195.9,3195.4,0.82675057]
[1641648871237,3.029391,3195.9,3195.4,1.09153857]
[1641648873637,3.029391,3195.9,3195.5,0.79575057]
[1641648873836,3.029391,3195.9,3195.5,1.29503167]
[1641648874037,2.88989,3195.9,3195.6,0.264788]
[1641648874540,4.35552197,3196.4,3195.6,0.264788]
[1641648874737,0.78634493,3196.3,3195.6,0.342998]
[1641648874936,0.78634493,3196.3,3195.6,0.264788]
[1641648875937,0.640787,3196.2,3195.7,1.29499585]
[1641648876539,0.640787,3196.2,3195.8,2.00479]
[1641648876838,0.640787,3196.2,3195.9,0.264788]
[1641648877240,16.51444914,3196.1,3195.7,0.79575057]
[1641648877440,1.49992259,3195.8,3195.6,0.49924528]
[1641648877640,0.139501,3195.7,3195.2,1.32375848]
[1641648877840,1.49992259,3195.3,3195.0,1.57300917]
[1641648878040,1.49992259,3195.1,3195.0,1.57300917]
[1641648878240,0.139501,3195.1,3195.0,1.57300917]
[1641648878440,0.139501,3195.1,3194.5,1.35754367]
[1641648878641,0.139501,3195.1,3194.5,3.36233367]
[1641648879043,1.49992259,3195.0,3194.5,3.36233367]
[1641648879242,0.139501,3194.9,3194.5,3.36233367]
[1641648879843,0.139501,3194.9,3194.5,2.03579]
[1641648881546,28.62021326,3194.9,3194.5,2.03579]
[1641648885449,30.12013585,3194.9,3194.5,2.03579]
[1641648887250,28.62021326,3194.9,3194.5,2.03579]
[1641648891458,28.62021326,3194.9,3194.5,0.031]
[1641648892460,30.12013585,3194.9,3194.5,0.031]
[1641648892659,2.00479,3194.6,3194.5,0.031]
[1641648893058,2.144291,3194.6,3194.5,0.031]
[1641648899564,2.00479,3194.6,3194.5,0.031]
[1641648900166,2.144291,3194.6,3194.5,0.031]
[1641648901166,1.0535763,3195.5,3194.5,0.6216]
[1641648901469,1.0535763,3195.5,3195.4,1.5]
[1641648901666,1.0535763,3195.5,3195.4,2.435108]
[1641648902167,1.0535763,3195.5,3195.4,3.78666043]
[1641648902568,0.78243151,3195.9,3195.4,23.49561208]
[1641648902767,1.95731901,3196.2,3195.8,5.50958]
[1641648902968,1.95731901,3196.2,3196.1,3.06375345]
[1641648903168,1.04695419,3196.7,3196.1,3.89105345]
[1641648903368,1.04695419,3196.7,3196.3,1.5]
[1641648903969,1.04695419,3196.7,3196.4,0.264788]
[1641648904169,1.04695419,3196.7,3196.5,0.0782]
[1641648904472,0.44971572,3197.1,3196.6,1.82840452]
[1641648904867,0.44971572,3197.1,3197.0,4.00958]
[1641648905868,1.11535537,3197.7,3197.0,4.00958]
[1641648906077,0.640787,3197.6,3197.0,1.87953312]
[1641648906869,1.09050272,3197.6,3197.0,1.87953312]
[1641648907771,0.44971572,3197.5,3197.0,1.87953312]
[1641648908777,0.44971572,3197.5,3197.1,0.264788]
[1641648908973,0.44971572,3197.4,3197.1,1.209388]
[1641648909172,0.44971572,3197.4,3197.1,1.287568]
[1641648909372,0.44971572,3197.4,3197.3,3.06316434]
[1641648909575,0.44971572,3197.4,3197.3,3.32795234]
[1641648909773,0.44971572,3197.4,3197.3,1.82795234]
[1641648910175,1.95731901,3197.9,3197.3,1.82795234]
[1641648910377,0.66563965,3198.0,3197.3,1.82795234]
[1641648910578,0.03,3198.4,3197.3,1.82795234]
[1641648910777,2.00479,3198.3,3197.5,2.00479]
[1641648911281,2.00479,3198.3,3197.6,0.264788]
[1641648912081,0.419363,3198.3,3197.6,2.527088]
[1641648912278,0.419363,3198.3,3198.0,1.56295179]
[1641648912480,0.419363,3198.3,3198.1,0.264788]
[1641648912682,0.419363,3198.3,3198.2,3.06281012]
[1641648912881,0.419363,3198.3,3198.2,5.57239012]
[1641648913082,0.419363,3198.3,3198.2,6.69268039]
[1641648913483,1.60277053,3198.4,3198.2,5.57239012]
[1641648914084,0.03,3198.4,3198.2,5.57239012]
[1641648914693,0.03,3198.4,3198.3,0.264788]
[1641648914992,0.03,3198.4,3198.3,1.033588]
[1641648915893,0.03,3198.4,3197.2,1.5633574]
[1641648916092,0.654,3198.4,3197.2,1.5633574]
[1641648916494,0.654,3198.4,3197.2,1.6415274]
[1641648916893,0.654,3198.4,3197.8,2.00479]
[1641648917094,0.654,3198.4,3197.9,0.264788]
[1641648917295,0.03,3198.4,3197.9,0.264788]
[1641648919898,0.03,3198.4,3197.8,4.00958]
[1641648920897,0.03,3198.4,3197.8,4.274368]
[1641648923699,0.03,3198.4,3198.3,3.06280768]
[1641648923899,0.78633415,3198.9,3198.4,0.264788]
[1641648924102,0.78633415,3198.9,3198.8,1.56256836]
[1641648924502,0.78633415,3198.9,3198.8,1.82735636]
[1641648924703,0.03,3199.3,3198.8,1.82735636]
[1641648924903,0.03,3199.3,3199.1,2.00479]
[1641648925103,0.03,3199.3,3199.1,2.90839]
[1641648925802,0.03,3199.3,3199.1,3.173178]
[1641648926407,2.79112415,3199.8,3199.2,3.06236818]
[1641648926702,2.79112415,3199.8,3199.6,33.56045968]
[1641648927102,1.05088011,3200.1,3199.7,1.82691455]
[1641648927302,1.57277053,3200.6,3199.8,0.07811]
[1641648927502,1.05026808,3200.4,3199.8,0.71201]
[1641648927706,1.05026808,3200.4,3199.9,1.81827038]
[1641648927902,1.05026808,3200.4,3200.0,0.07811]
[1641648928102,1.05026808,3200.4,3200.3,1.56183866]
[1641648928301,1.69105508,3200.4,3199.9,0.0781]
[1641648928503,1.69105508,3200.4,3199.1,0.4075413]
[1641648928504,1.69105508,3200.4,3199.2,1.6403122]
[1641648928701,0.640787,3200.4,3199.1,0.4075413]
[1641648928906,1.49992259,3200.1,3199.1,0.4075413]
[1641648929303,0.640787,3200.4,3199.1,0.4075413]
[1641648929304,1.49992259,3200.3,3199.1,0.4075413]
[1641648929503,1.49992259,3200.1,3199.1,0.4075413]
[1641648930104,0.640787,3200.4,3199.1,0.4075413]
[1641648930509,0.640787,3200.4,3199.2,0.07813]
[1641648930905,2.14070959,3200.4,3200.0,2.00479]
[1641648931505,0.640787,3200.4,3200.0,2.00479]
[1641648931706,0.640787,3200.4,3199.2,0.07813]
[1641648931906,2.00479,3200.9,3199.7,1.5]
[1641648932104,2.00479,3200.9,3200.0,1.56198015]
[1641648932305,2.00479,3200.9,3199.7,0.8878]
[1641648932506,2.00479,3200.9,3199.7,0.8097]
[1641648932706,2.00479,3200.9,3199.7,2.37181679]
[1641648932908,2.00479,3200.9,3200.4,2.00479]
[1641648933106,0.640787,3200.8,3200.4,2.88139]
[1641648934409,2.00479,3200.9,3200.4,3.146178]
[1641648935109,0.640787,3200.8,3200.4,3.146178]
[1641648935309,0.640787,3200.8,3200.4,2.88139]
[1641648936510,1.49992259,3200.5,3200.4,2.88139]
[1641648936710,1.49992259,3200.5,3199.6,0.0781]
[1641648936910,2.00479,3199.9,3199.4,1.5622803]
[1641648937111,0.640787,3199.8,3199.4,1.5622803]
[1641648937311,0.640787,3199.8,3199.1,2.00479]
[1641648937711,0.640787,3199.8,3199.2,0.264788]
[1641648939612,0.640787,3199.8,3199.2,1.069188]
[1641648939812,2.00479,3199.9,3199.2,1.069188]
[1641648940012,2.00479,3199.9,3199.3,0.07813]
[1641648940213,5.374,3201.3,3199.4,0.264788]
[1641648940411,5.374,3201.3,3199.5,0.0781]
[1641648940614,0.03,3201.1,3199.5,0.0781]
[1641648940813,0.03,3201.1,3199.3,0.0781]
[1641648941012,2.00479,3201.0,3199.9,2.00479]
[1641648941213,0.03,3201.1,3200.1,1.5]
[1641648941412,0.03,3201.1,3200.4,1.56178743]
[1641648941613,0.03,3201.1,3200.5,0.342888]
[1641648941812,0.640787,3201.0,3200.5,0.342888]
[1641648942012,0.640787,3201.0,3200.5,0.264788]
[1641648943013,0.640787,3201.0,3200.6,2.00479]
[1641648944416,1.49992259,3200.8,3199.3,1.64027048]
[1641648944616,1.49992259,3200.6,3199.3,0.0781]
[1641648944815,1.49992259,3200.6,3199.2,1.56237794]
[1641648945017,2.00479,3200.2,3199.5,2.00479]
[1641648945317,0.640787,3200.1,3199.5,2.00479]
[1641648945517,0.640787,3200.1,3199.5,2.269578]
[1641648945717,2.00479,3200.2,3199.5,2.269578]
[1641648949221,2.00479,3200.2,3199.6,0.07811]
[1641648949520,2.00479,3200.2,3199.7,0.264788]
[1641648952225,2.00479,3200.2,3199.5,2.00479]
[1641648952424,16.95471259,3200.2,3199.2,2.00479]
[1641648952625,1.49992259,3199.8,3199.2,2.00479]
[1641648953026,2.00479,3199.6,3199.2,2.00479]
[1641648953328,0.640787,3199.5,3199.2,2.00479]
[1641648957029,2.00479,3199.6,3199.2,2.269578]
[1641648957230,2.645577,3199.6,3199.2,2.269578]
[1641648958230,2.00479,3199.6,3199.2,2.966478]
[1641648958434,2.00479,3200.2,3199.2,2.966478]
[1641648959030,2.00479,3200.2,3199.2,4.971268]
[1641648960432,2.00479,3200.2,3199.2,6.53361421]
[1641648960633,2.00479,3200.2,3199.3,0.07813]
[1641648961034,2.00479,3200.2,3199.7,2.00479]
[1641648961235,2.645577,3200.2,3199.8,0.264788]
[1641648962032,2.00479,3200.2,3199.8,0.264788]
[1641648963434,2.00479,3200.2,3199.7,2.00479]
[1641648964534,2.00479,3200.2,3199.7,2.269578]
[1641648970140,2.00479,3200.2,3199.7,3.174078]
[1641648971046,2.00479,3200.2,3199.8,0.07811]
[1641648971847,2.00479,3200.2,3199.9,0.264788]
[1641648972247,2.00479,3200.2,3199.9,1.82680231]
[1641648974452,2.00479,3200.2,3199.9,0.264788]
[1641648974652,2.00479,3200.2,3200.0,1.56196551]
[1641648975052,2.00479,3200.2,3200.1,0.264788]
[1641648976854,2.00479,3200.6,3200.1,0.264788]
[1641648977052,0.78444677,3200.7,3200.1,0.264788]
[1641648977252,0.78444677,3200.7,3200.6,2.00479]
[1641648977453,1.04579762,3200.9,3200.6,2.62799]
[1641648977652,1.04579762,3200.8,3200.6,2.62799]
[1641648978753,0.98774376,3201.0,3200.6,2.62799]
[1641648979353,0.34695676,3201.0,3200.7,0.264788]
[1641648979754,0.34695676,3200.9,3200.7,0.264788]
[1641648980354,0.34695676,3200.9,3200.6,2.62799]
[1641648980855,1.04579762,3201.0,3200.6,2.62799]
[1641648981055,0.670787,3201.1,3200.6,2.62799]
[1641648981955,0.34679819,3201.0,3200.6,2.62799]
[1641648983054,1.39259581,3201.0,3200.6,2.62799]
[1641648983256,1.39259581,3201.0,3200.6,2.70609]
[1641648983756,1.39259581,3201.0,3200.7,0.264788]
[1641648984758,1.39259581,3201.0,3200.8,1.5615655]
[1641648984957,1.39259581,3201.0,3200.9,0.264788]
[1641648985158,0.34679819,3201.0,3200.9,0.264788]
[1641648986860,1.07579762,3201.1,3200.9,0.264788]
[1641648987061,0.03,3201.1,3200.9,0.264788]
[1641648987257,0.03,3201.1,3201.0,2.00479]
[1641648989060,0.03,3201.1,3201.0,3.56626772]
[1641648989663,0.03,3201.1,3201.0,2.00479]
[1641648990563,0.03,3201.1,3201.0,2.269578]
[1641648994068,0.03,3201.1,3201.0,2.00479]
[1641648994869,0.03,3201.1,3201.0,2.269578]
[1641649000271,0.79174776,3201.3,3201.0,2.347668]
[1641649000475,1.04579762,3201.6,3201.1,0.07809]
[1641649000671,1.04579762,3201.6,3201.2,1.82612675]
[1641649000871,1.04579762,3201.6,3201.3,0.07809]
[1641649001072,1.04579762,3201.6,3201.2,1.56133875]
[1641649001372,1.04579762,3201.6,3201.4,0.264788]
[1641649001571,1.04579762,3201.6,3201.5,0.07807]
[1641649002372,2.00479,3201.7,3201.5,0.07807]
[1641649002373,2.00479,3201.7,3201.5,1.63920157]
[1641649002572,2.00479,3201.7,3201.6,0.264788]
[1641649002772,2.00479,3201.7,3201.6,0.948558]
[1641649003673,0.03,3202.1,3201.6,0.948558]
[1641649003872,0.03,3202.1,3201.7,0.07806]
[1641649004271,0.03,3202.1,3201.8,0.264788]
[1641649005474,0.03,3202.1,3202.0,2.00479]
[1641649005673,0.03,3202.1,3202.0,2.347638]
[1641649005873,0.03,3202.1,3202.0,3.83056336]
[1641649006273,0.03,3202.1,3202.0,2.269578]
[1641649009880,0.03,3202.1,3202.0,2.00479]
[1641649011382,1.52992259,3202.1,3201.2,22.28130945]
[1641649011578,0.8407,3202.1,3202.0,1.5]
[1641649011778,1.04579762,3202.6,3202.0,17.80849935]
[1641649011979,1.04579762,3202.6,3202.1,1.01493504]
[1641649012277,1.04579762,3202.4,3202.2,0.264788]
[1641649012478,1.04579762,3202.4,3202.3,0.07806]
[1641649012677,1.04579762,3202.4,3202.1,0.07806]
[1641649012879,1.04579762,3202.4,3202.3,0.264787]
[1641649013079,1.04579762,3202.4,3202.3,0.07806]
[1641649013279,1.04579762,3202.4,3201.6,0.07806]
[1641649013479,1.04579762,3202.4,3202.0,2.00479]
[1641649013679,0.640787,3202.7,3202.0,2.00479]
[1641649013879,0.264788,3202.6,3202.0,2.00479]
[1641649014079,0.264788,3202.6,3202.0,2.269577]
[1641649014581,0.640787,3202.7,3202.0,2.269577]
[1641649014982,2.03479,3203.0,3202.1,0.07806]
[1641649015179,2.03479,3203.0,3202.2,1.56090008]
[1641649015379,2.03479,3203.0,3202.3,0.342847]
[1641649015580,0.640787,3202.9,3202.6,2.00479]
[1641649015781,0.640787,3202.9,3202.6,2.269577]
[1641649015981,0.640787,3202.9,3202.6,2.00479]
[1641649016182,1.04579762,3202.8,3202.6,2.00479]
[1641649016581,1.31058562,3202.8,3202.6,2.00479]
[1641649016982,1.6313547,3202.8,3202.6,2.00479]
[1641649018281,0.32076908,3202.7,3202.6,2.00479]
[1641649019283,1.68658462,3202.9,3202.6,2.00479]
[1641649019885,1.95137262,3202.9,3202.6,2.00479]
[1641649020286,1.68658462,3202.9,3202.6,2.00479]
[1641649020687,0.640787,3202.9,3202.6,2.00479]
[1641649020985,0.640787,3202.9,3202.6,2.269577]
[1641649021586,0.79189672,3202.8,3202.6,2.269577]
[1641649023591,1.43268372,3202.9,3202.6,2.269577]
[1641649023889,0.79189672,3202.9,3202.6,2.269577]
[1641649028593,1.72747172,3203.0,3202.6,2.269577]
[1641649028800,1.46268372,3203.0,3202.6,2.269577]
[1641649029896,0.670787,3203.0,3202.6,2.269577]
[1641649030896,0.670787,3203.0,3202.6,2.00479]
[1641649031299,0.935575,3203.0,3202.6,2.00479]
[1641649031697,0.670787,3203.0,3202.6,2.00479]
[1641649032697,0.935575,3203.0,3202.6,2.00479]
[1641649034508,0.03,3203.0,3202.7,0.264787]
[1641649035307,0.03,3203.0,3202.6,2.00479]
[1641649036809,0.03,3203.0,3202.9,1.56050791]
[1641649037010,0.03,3203.0,3202.9,2.24190791]
[1641649037408,0.03,3203.0,3202.9,2.50669491]
[1641649039817,0.03,3203.0,3202.9,0.946187]
[1641649040015,0.03,3203.0,3202.9,0.6814]
[1641649041218,0.03,3203.0,3202.6,2.269577]
[1641649042019,0.03,3203.0,3202.6,2.00479]
[1641649042218,0.294788,3203.0,3202.6,2.00479]
[1641649044722,1.49992259,3202.7,3202.6,2.00479]
[1641649044923,1.76471059,3202.7,3202.1,0.07806]
[1641649045123,1.49992259,3202.3,3202.0,2.00479]
[1641649045327,0.640787,3202.2,3202.0,2.00479]
[1641649045526,0.905575,3202.2,3202.0,2.00479]
[1641649046127,0.905575,3202.2,3201.5,1.56123394]
[1641649046128,1.49992259,3202.1,3201.4,2.797442]
[1641649046325,1.49992259,3201.6,3201.4,0.792652]
[1641649046825,1.49992259,3201.9,3201.4,0.792652]
[1641649047025,0.264788,3201.5,3201.4,0.792652]
[1641649047527,0.905575,3201.5,3201.4,0.792652]
[1641649047726,0.905575,3201.5,3201.1,1.56143383]
[1641649047927,0.264788,3201.5,3201.4,1.56120469]
[1641649048126,0.264788,3201.5,3201.4,2.17270469]
[1641649049228,0.264788,3201.5,3201.4,0.6115]
[1641649049425,0.264788,3201.5,3201.2,0.870722]
[1641649049626,0.264788,3201.5,3201.2,0.792652]
[1641649050227,0.264788,3201.5,3201.1,0.870742]
[1641649051526,0.264788,3201.5,3201.0,4.35892703]
[1641649052327,0.264788,3201.5,3201.1,1.29104587]
[1641649053328,0.264788,3201.5,3201.1,0.792652]
[1641649053529,0.264788,3201.5,3201.0,3.56627503]
[1641649053530,0.264788,3201.5,3201.0,4.35892703]
[1641649055630,0.264788,3201.5,3201.0,3.56627503]
[1641649056532,0.264788,3201.5,3201.0,4.35892703]
[1641649057131,0.264788,3201.5,3201.0,2.797442]
[1641649057331,0.264788,3201.5,3201.0,4.3589441]
[1641649057531,0.264788,3201.5,3201.0,4.6237311]
[1641649058133,0.264788,3201.5,3201.1,1.29105233]
[1641649058331,0.264788,3201.5,3201.1,1.89465233]
[1641649058733,0.640787,3201.6,3201.1,1.89465233]
[1641649058932,0.640787,3201.6,3201.2,1.057439]
[1641649059134,0.79189672,3202.2,3201.5,1.56113401]
[1641649059332,0.79189672,3202.2,3201.6,0.264787]
[1641649059532,0.79189672,3202.2,3201.6,0.342847]
[1641649059733,0.640787,3202.1,3201.7,2.00479]
[1641649059932,0.640787,3202.1,3201.8,0.264787]
[1641649060133,0.640787,3202.1,3201.8,1.205787]
[1641649060836,25.10958672,3202.4,3201.8,1.205787]
[1641649061038,2.79668672,3202.4,3201.8,1.205787]
[1641649061434,2.79668672,3202.4,3201.9,0.07806]
[1641649061638,0.640787,3202.3,3201.9,0.342847]
[1641649061835,1.49992259,3202.2,3201.8,0.941]
[1641649062435,0.264788,3202.1,3201.8,0.941]
[1641649062636,1.49992259,3201.9,3201.8,0.941]
[1641649062838,1.49992259,3202.2,3201.8,0.941]
[1641649063036,2.55660731,3202.2,3201.8,0.941]
[1641649064340,0.79189672,3202.1,3201.8,0.941]
[1641649064538,0.79189672,3202.1,3201.4,0.792652]
[1641649064739,0.264788,3202.0,3201.4,0.792652]
[1641649065239,0.264788,3202.0,3201.1,1.56144846]
[1641649065240,1.05668472,3202.0,3201.3,0.792652]
[1641649065838,2.00479,3201.7,3201.3,0.792652]
[1641649066439,0.264788,3201.6,3201.3,0.792652]
[1641649067240,0.264788,3201.6,3201.4,0.792652]
[1641649067840,0.905575,3201.6,3201.4,0.792652]
[1641649068246,0.905575,3201.6,3201.3,1.29105274]
[1641649069843,2.40549759,3201.6,3201.3,1.29105274]
[1641649070042,3.15129759,3201.6,3201.3,1.29105274]
[1641649070648,3.15129759,3201.6,3201.3,0.792652]
[1641649070846,3.15129759,3201.6,3201.1,1.56144115]
[1641649072147,3.15129759,3201.6,3201.1,2.35409315]
[1641649072346,2.40549759,3201.6,3201.1,2.35409315]
[1641649072546,0.905575,3201.6,3201.1,2.35409315]
[1641649074853,0.264788,3201.6,3201.1,2.61888015]
[1641649075152,2.00479,3201.7,3201.1,2.61888015]
[1641649075455,2.269578,3201.7,3201.1,3.52597015]
[1641649075659,2.14070959,3201.6,3201.1,3.18309315]
[1641649075861,2.00479,3201.2,3201.1,3.18309315]
[1641649076062,2.00479,3201.2,3201.1,2.39044115]
[1641649076265,2.00479,3201.2,3201.1,1.56144115]
[1641649076463,2.269578,3201.2,3201.1,1.56144115]
[1641649078969,0.264788,3201.2,3201.1,1.56144115]
[1641649080170,0.264788,3201.2,3200.6,0.07809]
[1641649080370,1.43268372,3201.6,3200.7,0.264787]
[1641649080571,0.79189672,3201.6,3200.8,0.07809]
[1641649080770,0.79189672,3201.6,3201.1,0.93717501]
[1641649080972,0.79189672,3201.6,3201.2,0.07809]
[1641649081170,2.00479,3201.8,3201.4,1.56130219]
[1641649081171,0.79189672,3201.7,3201.4,1.56130219]
[1641649081372,0.79189672,3201.7,3201.5,0.342857]
[1641649081971,0.79189672,3201.7,3201.5,2.347647]
[1641649082471,1.04579762,3201.9,3201.5,2.347647]
[1641649082673,0.264788,3201.9,3201.5,2.347647]
[1641649084973,0.640787,3202.0,3201.5,2.347647]
[1641649085772,2.00479,3202.2,3201.5,2.347647]
[1641649087174,2.645577,3202.2,3201.5,2.347647]
[1641649087976,0.79189672,3202.4,3201.5,3.847647]
[1641649088376,0.79189672,3202.4,3201.9,1.56103165]
[1641649088577,0.79189672,3202.5,3202.0,0.264787]
[1641649089378,1.43268372,3202.5,3202.0,0.264787]
[1641649090280,0.640787,3202.5,3202.0,0.264787]
[1641649092085,0.905575,3202.5,3202.0,0.264787]
[1641649092284,0.905575,3202.5,3201.9,1.56103165]
[1641649092489,0.905575,3202.5,3201.9,0.79426469]
[1641649092490,1.49992259,3202.3,3201.9,0.79426469]
[1641649092686,0.264788,3202.2,3201.9,0.79426469]
[1641649093688,0.264788,3202.2,3201.7,0.79426469]
[1641649094989,0.264788,3202.2,3201.8,0.79426469]
[1641649095889,0.264788,3202.2,3201.7,0.79426469]
[1641649096494,1.49992259,3202.0,3201.7,0.79426469]
[1641649096689,0.264788,3201.9,3201.7,0.79426469]
[1641649097089,0.640787,3201.8,3201.7,0.79426469]
[1641649098192,0.640787,3201.8,3201.5,2.00479]
[1641649098492,0.264788,3201.7,3201.5,2.00479]
[1641649103196,0.264788,3201.7,3201.5,2.79905469]
[1641649105799,0.264788,3201.7,3201.6,1.29265955]
[1641649107604,0.264788,3201.7,3201.5,2.79905469]
[1641649108501,0.264788,3201.7,3201.5,2.00479]
[1641649108702,0.264788,3201.7,3201.6,0.49837098]
[1641649110607,0.264788,3201.7,3201.3,1.32445897]
[1641649110806,0.264788,3201.7,3201.5,0.79571759]
[1641649112909,1.49992259,3201.6,3201.3,0.49840897]
[1641649113108,1.49992259,3201.4,3201.0,1.32445897]
[1641649113311,1.49992259,3201.1,3200.7,1.58729223]
[1641649113510,1.49992259,3200.8,3200.5,1.96626147]
[1641649113711,1.49992259,3200.6,3200.3,2.62168195]
[1641649113910,1.49992259,3200.4,3200.3,8.195e-05]
[1641649114110,5.77429059,3200.4,3200.3,8.195e-05]
[1641649114518,5.77429059,3200.4,3200.1,1.98932655]
[1641649114713,1.49992259,3200.2,3200.1,1.98932655]
[1641649115115,1.76471059,3200.2,3200.1,1.98932655]
[1641649115515,2.40549759,3200.2,3200.1,1.98932655]
[1641649116116,2.40549759,3200.2,3199.7,3.27710244]
[1641649116316,1.49992259,3200.1,3199.7,3.27710244]
[1641649116518,0.264788,3200.0,3199.7,3.27710244]
[1641649116717,0.264788,3200.0,3199.4,3.60481269]
[1641649116917,1.49992259,3199.9,3199.1,3.59818991]
[1641649117118,0.264788,3199.8,3199.1,3.59818991]
[1641649118023,1.49992259,3199.4,3199.1,0.031]
[1641649118220,5.50950259,3199.2,3198.3,3.27710244]
[1641649119323,5.50950259,3199.2,3198.2,2.00479]
[1641649119923,4.00958,3199.2,3198.2,2.00479]
[1641649120124,2.00479,3198.6,3198.0,1.95886442]
[1641649120323,2.00479,3198.6,3198.2,0.342937]
[1641649120626,2.00479,3198.6,3198.3,1.56279058]
[1641649120824,1.04579762,3200.1,3198.5,1.56263673]
[1641649121023,1.04579762,3200.1,3198.5,1.64076673]
[1641649121223,13.45,3199.9,3198.5,1.64076673]
[1641649121423,1.04579762,3200.4,3198.6,1.5]